Cogmind - Beta 17 @@@ ROGUE MODE // 2026.07.21 @ 21:35:12 Player: MN-51T Result: Self-destructed Performance ------------- Evolutions (1) 500 Regions Visited (3) 600 Robots Destroyed (16) 80 Value Destroyed (376) 376 Prototype IDs (1) 20 Alien Tech Used (0) 0 Bonus (35) 35 TOTAL SCORE: 1611 Bonus ------- Follower Combat Kills 35 Cogmind --------- Core Integrity 348/400 Matter 260/300 Energy 199/250 System Corruption 0% Temperature Cool (0) Movement Rolling (90) Location -9/Materials Parts ------- > --- POWER (1) -------- Ion Engine > --- PROPULSION (3) --- Armored Wheel Armored Wheel > --- UTILITY (3) ------ Improved Heat Sink Medium Storage Unit Seismic Detector > --- WEAPON (2) ------- Particle Gun Advanced Beam Cannon > --- INVENTORY (10) --- Aluminum Leg Aluminum Leg Improved Aluminum Leg High-capacity Matter Pod (100) Beamcaster Assault Rifle Assault Rifle Mining Laser Hammer Peak State ------------ > --- POWER ------------ Ion Engine > --- PROPULSION ------- Improved Aluminum Leg Armored Wheel Armored Wheel > --- UTILITY ---------- Improved Heat Sink Medium Storage Unit Seismic Detector > --- WEAPON ----------- Particle Gun Advanced Beam Cannon > --- INVENTORY -------- Ion Engine Aluminum Leg Aluminum Leg Wheel High-capacity Matter Pod Beamcaster Assault Rifle Assault Rifle Mining Laser Hammer [Rating: 18] Favorites ----------- Power Ion Engine Engine Ion Engine Propulsion Aluminum Leg Leg Aluminum Leg Wheel Wheel Utility Small Storage Unit Device Improved Heat Sink Storage Small Storage Unit Protection Light Armor Plating Weapon Assault Rifle Energy Gun Particle Gun Energy Cannon Advanced Beam Cannon Ballistic Gun Assault Rifle Build | -11 -10 -10 -9 ------- Run | Yrd Mat Min Mat Slots Evolved 2 | . . . 2 Power . | . . . . Propulsion 1 | . . . 1 Utility 1 | . . . 1 Weapon . | . . . . Parts Attached 28 | 6 5 5 12 Power 4 | 1 1 1 1 Engine 4 | 1 1 1 1 Core . | . . . . Reactor . | . . . . Propulsion 10 | 2 . 2 6 Treads . | . . . . Leg 5 | 2 . 2 1 Wheel 5 | . . . 5 Hover . | . . . . Flight . | . . . . Utility 7 | 1 3 1 2 Device 3 | . 1 1 1 Storage 3 | 1 1 . 1 Processor . | . . . . Hackware . | . . . . Protection 1 | . 1 . . Artifact . | . . . . Weapon 7 | 2 1 1 3 Energy Gun 4 | 1 . 1 2 Energy Cannon 1 | . . . 1 Ballistic Gun 2 | 1 1 . . Ballistic Cannon . | . . . . Launcher . | . . . . Special Weapon . | . . . . Impact Weapon . | . . . . Slashing Weapon . | . . . . Piercing Weapon . | . . . . Special Melee Weapon . | . . . . Unidentified Prototypes 1 | . . . 1 Parts Lost 3 | . . 1 2 Power 1 | . . . 1 Propulsion 1 | . . . 1 Utility 1 | . . 1 . Weapon . | . . . . Highest Loss Streak 2 | . . 1 2 To Critical Strikes . | . . . . Average Backups 6 | 1 4 7 7 Power . | . 1 1 . Propulsion 1 | . 1 2 1 Utility 1 | . . 2 1 Weapon 2 | . 1 2 3 Tool/Special . | . . . . Unused Backups 7 | . 1 1 5 Power . | . . . . Propulsion . | . . . . Utility 2 | . 1 . 1 Weapon 5 | . . 1 4 Tool/Special . | . . . . Average Slot Usage (%) 95 | . 88 99 97 Engine 12 | . 14 14 11 Leg 21 | . 28 28 9 Wheel 7 | . . . 20 Device 9 | . . 3 22 Storage 14 | . 15 16 11 Protection 3 | . 1 7 . Energy Gun 7 | . 7 3 12 Energy Cannon 2 | . . . 6 Ballistic Gun 15 | . 20 24 3 Peak Build Rating 18 | 6 7 11 18 Average Rating 9 | 4 6 8 15 On Entrance 6 | . 6 7 11 Avg Prop Armor Cover (%) 8 | . . . 8 Naked Turns . | . . . . Heaviest Build 24 | 14 16 16 24 Greatest Support 34 | 20 20 20 34 Greatest Overweight (x) 1 | . . . 1 Average Overweight (x) . | . . . . Largest Inventory Capacity 10 | 8 8 8 10 Average Capacity 8 | 6 8 8 9 Most Carried 10 | 4 8 8 10 Average Carried 6 | 1 4 7 7 Final Capacity 10 | 8 8 8 10 Final Carried 9 | 4 8 8 9 Class Distribution -------------------- 65% | Mutant 34% | Scavenger-Mutant Dominant Class ---------------- Mutant | -10/Materials Mutant | -10/Mines Scavenger-Mutant | -9/Materials Resources | -11 -10 -10 -9 ----------- Run | Yrd Mat Min Mat Matter Collected 807 | 262 192 153 200 Remotely . | . . . . Salvage Created 569 | . 192 204 173 Parts 33 | . 14 11 8 Haulers Intercepted . | . . . . Recyclers Shooed . | . . . . Parts Field Recycled . | . . . . Retrieved Matter . | . . . . Parts Self-Destructed . | . . . . Prevented . | . . . . Parts Restored . | . . . . Kills | -11 -10 -10 -9 ------- Run | Yrd Mat Min Mat Combat Hostiles Destroyed 14 | . 8 3 3 Guns 14 | . 8 3 3 Classes Destroyed 6 | . 2 1 3 Worker 1 | . . . 1 Recycler 1 | . . 1 . Swarmer 6 | . 6 . . Grunt 6 | . 2 3 1 Duelist 1 | . . . 1 Sentry 1 | . . . 1 Best Kill Streak 6 | . 6 4 4 Combat Bots Only 6 | . 6 3 3 Max Kills in Single Turn 2 | . 1 1 2 Gunslinging . | . . . . Exploded . | . . . . Melee . | . . . . Uniques/NPCs Destroyed . | . . . . Combat | -11 -10 -10 -9 -------- Run | Yrd Mat Min Mat Hostile Shots Fired 100 | . 18 42 40 Missed 22 | . 3 9 10 Hits 78 | . 15 33 30 Projectile 78 | . 15 33 30 Critical Strikes 2 | . . 1 1 Damage Taken 968 | . 146 427 395 Core 164 | . 8 104 52 Absorbed by Shields . | . . . . Regen/Repaired (Parts) 41 | . . . 41 Core Remaining (%) 77 | 100 . 55 . Volleys Fired 47 | . 15 20 12 Largest 2 | . 2 2 2 Hottest 140 | . 60 40 140 Shots Fired 94 | . 30 40 24 Gun 88 | . 30 40 18 Cannon 6 | . . . 6 Launcher . | . . . . Special . | . . . . Kinetic 62 | . 22 40 . Thermal 24 | . . . 24 Explosive . | . . . . Electromagnetic 8 | . 8 . . Robot Hit Streak 16 | . 7 10 16 Robot Miss Streak 5 | . 2 5 3 Penetration Max . | . . . . Secondary Targets . | . . . . Shots Hit Robots 61 | . 19 26 16 Core Hits 29 | . 12 10 7 Critical Kills . | . . . . Critical Parts Destroyed . | . . . . Critical Strikes 1 | . . . 1 Burn 1 | . . . 1 Melee Attacks . | . . . . Impact . | . . . . Slashing . | . . . . Piercing . | . . . . Sneak Attacks . | . . . . Combat Hostiles . | . . . . Follow-up Attacks . | . . . . Damage Inflicted 836 | . 212 312 312 Guns 774 | . 212 312 250 Cannons 62 | . . . 62 Explosions . | . . . . Melee . | . . . . Ramming . | . . . . Kinetic 478 | . 166 312 . Thermal 312 | . . . 312 Explosive . | . . . . Electromagnetic 46 | . 46 . . Impact . | . . . . Slashing . | . . . . Piercing . | . . . . Highest Corruption . | . . . . Average Corruption . | . . . . Corruption Purged . | . . . . Corruption Blocked . | . . . . Overload Shots . | . . . . Overflow Damage . | . . . . Projectiles . | . . . . Explosions . | . . . . Melee . | . . . . Knockbacks . | . . . . Impact . | . . . . Kinetic . | . . . . Secondary . | . . . . Self-Inflicted Damage . | . . . . Shots . | . . . . Rammed . | . . . . Targets Rammed . | . . . . Kicked . | . . . . Crushed . | . . . . Highest Temperature 200 | . 12 102 200 Average Temperature 59 | . 7 51 77 Received Heat Transfer 462 | . 42 255 165 Siege Activations . | . . . . Martial Activations . | . . . . Shielding Activations . | . . . . Robots Disrupted . | . . . . Combat Hostiles . | . . . . Robots Corrupted . | . . . . Combat Hostiles . | . . . . Parts Fried . | . . . . Impact Corruptions . | . . . . Robots Melted . | . . . . Combat Hostiles . | . . . . Parts Melted 2 | . . . 2 Heat Transferred 703 | . . . 703 Parts Sabotaged . | . . . . Parts Stolen . | . . . . Parts Stripped . | . . . . Power Chain Reactions . | . . . . Alert | -11 -10 -10 -9 ------- Run | Yrd Mat Min Mat Maximum Alert Level . | . . . . Low Security (%) 100 | 100 100 100 100 Level 1 . | . . . . Level 2 . | . . . . Level 3 . | . . . . Level 4 . | . . . . Level 5 . | . . . . High Security . | . . . . Max Security . | . . . . Peak Influence 130 | . 130 57 75 Initial 42 | . . 42 . Average 30 | . 64 20 20 Influence Increases 425 | . 218 107 100 Destroy 0b10 Robot/C 300 | . 160 80 60 Destroy 0b10 Robot/NC 10 | . . 5 5 Destroy Leader 70 | . 30 20 20 Allied During Kill 2 | . . 2 . Successful Hack 28 | . 28 . . Partial Spotted 15 | . . . 15 Influence Decreases 425 | . 109 216 100 Entered New Map 67 | . . 67 . Time Decay 328 | . 109 119 100 Lost Part 10 | . . 10 . Lost Ally 20 | . . 20 . Squads Dispatched 3 | . 3 . . Investigation . | . . . . Extermination . | . . . . Reinforcement 3 | . 3 . . Assault . | . . . . Garrison . | . . . . Intercept . | . . . . Searches Triggered . | . . . . Construction Impeded . | . . . . Haulers Reinforced . | . . . . Active Scanning Responses . | . . . . Cargo Convoy Interrupts . | . . . . Stealth | -11 -10 -10 -9 --------- Run | Yrd Mat Min Mat Distress Signals 6 | . 2 . 4 Communications Jammed . | . . . . Distress Signals . | . . . . Times Spotted 23 | . 10 4 9 Peak Tracking Total 6 | . 4 3 6 Tactical Retreats . | . . . . Traps | -11 -10 -10 -9 ------- Run | Yrd Mat Min Mat Traps Triggered . | . . . . Indirectly . | . . . . Trap Hack Attempts . | . . . . Triggered . | . . . . Disarmed . | . . . . Reprogrammed . | . . . . Reused . | . . . . Traps Extracted . | . . . . Installed . | . . . . Triggered . | . . . . Machines | -11 -10 -10 -9 ---------- Run | Yrd Mat Min Mat Machines Disabled . | . . . . Max in Single Turn . | . . . . Machines Repaired . | . . . . Machines Dismantled . | . . . . Machines Sabotaged . | . . . . Overloaded Fab Kills . | . . . . Hacking | -11 -10 -10 -9 --------- Run | Yrd Mat Min Mat Machines Accessed 4 | . 3 . 1 Terminals 3 | . 3 . . Fabricators . | . . . . Repair Stations 1 | . . . 1 Recycling Units . | . . . . Scanalyzers . | . . . . Garrison Access . | . . . . Total Hacks 17 | . 15 . 2 Successful 10 | . 8 . 2 Failed 7 | . 7 . . Catastrophic 1 | . 1 . . Database Lockouts . | . . . . Manual 12 | . 12 . . Terminals 15 | . 15 . . Fabricators . | . . . . Repair Stations 2 | . . . 2 Recycling Units . | . . . . Scanalyzers . | . . . . Garrison Access . | . . . . Terminal Hacks 6 | . 6 . . Record 1 | . 1 . . Branch Access Points 1 | . 1 . . Terminal Index 1 | . 1 . . Locate Traps 1 | . 1 . . Recall Reinforcements 1 | . 1 . . Zone Layout 1 | . 1 . . Fabricator Hacks . | . . . . Repair Station Hacks 2 | . . . 2 Scan Component 1 | . . . 1 Repair 1 | . . . 1 Recycling Unit Hacks . | . . . . Scanalyzer . | . . . . Garrison Access Hacks . | . . . . Unauthorized Hacks 2 | . 2 . . Terminals 2 | . 2 . . Botnet 2 | . 2 . . Fabricators . | . . . . Repair Stations . | . . . . Recycling Units . | . . . . Scanalyzers . | . . . . Garrison Access . | . . . . Data Cores Recovered . | . . . . Used . | . . . . Hacking Detections 4 | . 3 . 1 Full Trace Events . | . . . . Feedback Events . | . . . . Feedback Blocked . | . . . . Robot Schematics Acquired . | . . . . Robots Built . | . . . . Authchips . | . . . . Time . | . . . . Total Robot Build Rating . | . . . . Part Schematics Acquired . | . . . . Parts Built . | . . . . Authchips . | . . . . Time . | . . . . Total Part Build Rating . | . . . . Part Studies Acquired . | . . . . Parts Repaired 1 | . . . 1 Time 26 | . . . 26 Parts Recycled . | . . . . Recycled Matter . | . . . . Retrieved Matter . | . . . . Retrieved Components . | . . . . Parts Scanalyzed . | . . . . Part Schematics Acquired . | . . . . Parts Damaged . | . . . . Bothacking | -11 -10 -10 -9 ------------ Run | Yrd Mat Min Mat Used RIF Installer . | . . . . Robots Hacked . | . . . . Non-combat . | . . . . Combat . | . . . . Robot Hacks Applied . | . . . . Relay Couplers Released . | . . . . Fabnet Peak Effective % . | . . . . Robots Rewired . | . . . . Allies Hacked . | . . . . Hacks Repelled . | . . . . Allies | -11 -10 -10 -9 -------- Run | Yrd Mat Min Mat Total Allies 1 | . . 1 . Largest Group 1 | . . 1 . Highest-Rated Group 31 | . . 31 . Highest-Rated Ally 31 | . . 31 . Total Orders . | . . . . Ally Attacks 10 | . . 10 . Total Damage 123 | . . 123 . Kills 1 | . . 1 . Allies Corrupted . | . . . . Allies Melted . | . . . . Intel | -11 -10 -10 -9 ------- Run | Yrd Mat Min Mat Active Infowar (turns) 343 | . . . 343 Seismic 343 | . . . 343 Robot Analysis Total . | . . . . Derelict Logs Recovered 1 | . . 1 . Drone Launches . | . . . . Drone Recoveries . | . . . . Exploration | -11 -10 -10 -9 ------------- Run | Yrd Mat Min Mat Turns Passed 1050 | 97 299 311 343 Spaces Moved 706 | 79 163 198 266 Core 17 | 17 . . . Treads . | . . . . Legs 435 | 62 163 198 12 Wheels 254 | . . . 254 Hover . | . . . . Flight . | . . . . Fastest Speed 50 | 50 120 120 80 Average Speed 107 | 104 120 120 90 Slowest Speed 190 | 120 120 120 190 Overloaded Moves . | . . . . Propulsion Burnouts . | . . . . Robots Hopped . | . . . . Potential Cave-ins . | . . . . Cave-ins Triggered . | . . . . Exploration Rate (%) 24 | 4 34 42 19 Regions Visited 3 Branch Regions 1 Pre-discovered Areas 1 | . . 1 . Known Exits Taken 1 | . 1 . . Unknown Exits Taken 2 | 1 . 1 . Scrap Searched . | . . . . Spaces Dug . | . . . . Terrain Destroyed . | . . . . Melee . | . . . . Projectile . | . . . . AOE . | . . . . Terrain Rammed . | . . . . Walls Destroyed . | . . . . Machines Disabled . | . . . . Actions | -11 -10 -10 -9 --------- Run | Yrd Mat Min Mat Total 911 | 90 239 238 344 Wait 91 | . 45 6 40 Move 703 | 78 162 197 266 Hop . | . . . . Pick Up 15 | 4 5 3 3 Fast Attach 13 | 6 3 1 3 Attach 6 | 1 1 1 3 Detach 5 | 1 3 . 1 Swap 14 | . 1 4 9 Drop 17 | . 4 6 7 Fire 47 | . 15 20 12 Melee . | . . . . Ram . | . . . . Kick . | . . . . Crush . | . . . . Escape Stasis . | . . . . Rewire . | . . . . Trap . | . . . . Miscellaneous . | . . . . Route ------- -11/Scrapyard -10/Materials -10/Mines (discovered 2 exits: *Mat x2) -9/Materials History --------- Turn | Location | Event 6 | -11/Scrapyard | Discovered new exit (range 16) 98 | -11/Scrapyard | Entered Materials 139 | -10/Materials | Identified exit to Mines 326 | -10/Materials | Build established: Mutant 397 | -10/Materials | Entered Mines 480 | -10/Mines | Discovered new exit (range 3) 482 | -10/Mines | Received a Mining Laser from a helpful Derelict 503 | -10/Mines | Learned location of Zion (-7) 696 | -10/Mines | Discovered new exit (range 12) 708 | -10/Mines | Entered Materials 708 | -9/Materials | Evolved 2 slots: Propulsion x1, Utility x1 745 | -9/Materials | Repaired Aluminum Leg 900 | -9/Materials | Build established: Scavenger-Mutant 1051 | -9/Materials | Self-destructed Last Messages --------------- 00856_ Acquired Particle Gun. 00859_ Dropped Sml. Storage Unit. 00875_ Acquired 30 matter. 00879_ Dropped Wheel. 00883_ Acquired 10 matter. 00929_ Dropped Med. Matter Pod. 00930_ Acquired Hcp. Matter Pod. 00931_ Extracted 100 matter. 00932_ Dropped Lgt. Assault Rifle. 00934_ Acquired Assault Rifle. 00975_ Dropped Wheel. 00977_ Dropped Particle Gun. 00986_ Connecting with Repair Station... 00993_ W-16 Scout sends out distress signal. 01026_ Ion Engine destroyed. 01027_ Critical hit (Burn: +37). 01037_ M-13 Machinist repairs G-34 Mercenary. 01039_ G-34 Mercenary heat damages Ion Engine. 01040_ M-13 Machinist repairs G-34 Mercenary Ion Engine. 01042_ Wheel destroyed. Map ----- +----------------------------------------------------+ | | | | | | | | | | | | | | | ##########????###########?????????????? | | # #????#! ]!#?????????????? | | # #????# !#?????????????? | | # #????# ! [ #?????????????? | | # ###### #?????????????? | | ??###+##### ###+##+####???????#????## | | ????# #?????????## ?? | | ????# #?????????# """ | | ????# ] ########???# """ | | ????# # #???# """ | | ????# #== #???# | | ????# #%[[ #???# | | ????# +!!""" #????? !| | | ????# ^ #% """ #???????!! | | ????# ^ #! """ #????????? | | ????# ################## | | ????# | | ????# | | ????# @ | | ????# ^^ ##+######+############## | | ????# # ## #????????? | | ???## ^^ # ## """ #????????? | | ???# # ## ""R" #????????? | | ???# # ## "" " ! #?????? | | ???# # ## #?? | | ??###+######## # ## """ #??? | | ??# ##### # ## """ !#???###### | | ??# + ###### """ =[#????????? | | ??# #######????# #????????? | | ??# [! #??????????######## #????????? | | ??#[[! #?????????????????###????????? | | ??#[!! #????????????????????????????? | | ??########????????????????????????????? | | ??????????????????????????????????????? | | ??????????????????????????????????????? | | ??????????????????????????????????????? | | ??????????????????????????????????????? | | ??????????????????????????????????????? | | ??????????????????????????????????????? | | ??????????????????????????????????????? | | ??????????????????????????????????????? | | ??????????????????????????????????????? | | ??????????????????????????????????????? | +----------------------------------------------------+ Best States ------------- Heat Dissipation 42 Energy Generation 10 Energy Capacity 250 Matter Stores 400 Matter Capacity 400 Sight Range 16 Terrain Scan Density 10 Armor Coverage 150 Evasion (%) 55 Item Schematics ----------------- None Robot Schematics ------------------ None Fabricated ------------ Nothing Repaired ---------- Aluminum Leg | 54% | -9/Materials Studied --------- None Alien Tech Used ----------------- None Achievements -------------- None Challenges ------------ None Game ------ Seed PropulsionMomentumTendrils Manual? 0 Play Time 00:33:10 Cumulative 38.9 hours Start 2026.06.29 @ 20:54:49 End 2026.07.21 @ 21:35:12 Sessions 10 Manual Loads 0 Difficulty Rogue Special Mode None Game No. 27 Rogue 27 Adventurer 0 Explorer 0 Win Type - Total 0 Types 0/0/0/0/0/0/0/0/0/0 Lore% 25 Gallery% 26 Achievement% 34 Wizard Run 0 Options --------- Layout 0 ASCII 0 Keyboard 1 Movement Vi Keybinds 0 Fullscreen 1 Font 18/SmallcapsGlow Map View 76x50 Zoom Use 0% Tactical HUD 1 Map Filters NONE Filters NONE Steam 1 RUN: 58da2f26-bb21-431d-8d22-a146e34f6e59